Workbook

Sheet Template
B1: Pricing Worksheet
B2: Instructions: A. Complete yellow cells in Project Plan. B. Enter outside costs and mark-up (if any). C. Enter additional IC's (if any). D. Complete sales commisision box (if applicable). E. Enter Final Sale Price
AL3: Outside Costs | AM3: Item | AN3: Markup
B4: Project Plan Phase | C4: Description | D4: Resource Class | E4: Resource Person | F4: Estimated Hours | G4: Sale Price | H4: Cost | J4: Description or Vendor | K4: Outside Cost ($) | L4: Mark-Up | M4: Cost with Mark Up | O4: Project Summary | R4: Resource Class | T4: Hourly Cost | U4: Hourly Rate | V4: MarkUp | AB4: Personnel Class | AE4: Resource Lookup | AG4: Total | AH4: Cost | AJ4: Mark-Up | AL4: Production | AM4: Printing | AN4: 0.17
B5: Banners | C5: 5 sizes of Display Banners, 2 versions | D5: Sr. Account Manager | E5: Megan | F5: 2 | G5: =F5*IF(AE5=$R$5,$U$5,IF(AE5=$R$6,$U$6,IF(AE5=$R$7,$U$7,IF(AE5=$R$8,$U$8,IF(AE5=$R$9,$U$9,IF(AE5=$R$10,$U$10,IF(AE5=$R$11,$U$11,IF(AE5=$R$12,$U$12,IF(AE5=$R$13,$U$13,IF(AE5=$R$14,$U$14,IF(AE5=$R$15,$U$15,IF(AE5=$R$16,$U$16,IF(AE5=$R$17,$U$17,IF(AE5=$R$18,$U$18,IF(AE5=$R$19,$U$19,IF(AE5=$R$20,$U$20,IF(AE5=$R$21,$U$21,IF(AE5=$R$21,$U$21,IF(AE5=$R$22,$U$22,IF(AE5=$R$23,$U$23,IF(AE5=$R$24,$U$24,IF(AE5=$R$25,$U$25,)))))))))))))))))))))) -> 300 | H5: =F5*IF(AE5=$R$5,$T$5,IF(AE5=$R$6,$T$6,IF(AE5=$R$7,$T$7,IF(AE5=$R$8,$T$8,IF(AE5=$R$9,$T$9,IF(AE5=$R$10,$T$10,IF(AE5=$R$11,$T$11,IF(AE5=$R$12,$T$12,IF(AE5=$R$13,$T$13,IF(AE5=$R$14,$T$14,IF(AE5=$R$15,$T$15,IF(AE5=$R$16,$T$16,IF(AE5=$R$17,$T$17,IF(AE5=$R$18,$T$18,IF(AE5=$R$19,$T$19,IF(AE5=$R$20,$T$20,IF(AE5=$R$21,$T$21,IF(AE5=$R$25,$T$25,)))))))))))))))))) -> 144 | J5: Sample Vendor | M5: =K5*(1+L5) -> 0 | O5: Dept | P5: Hours | R5: 1.1 | S5: Account Coordintor | T5: =Calculations!E19 -> 47 | U5: 120 | V5: =U5/T5 -> 2.553191489 | AB5: N/A | AC5: =R5 -> 1.1 | AE5: =IF(D5=$S$5,$R$5,IF(D5=$S$6,$R$6,IF(D5=$S$7,$R$7,IF(D5=$S$8,$R$8,IF(D5=$S$9,$R$9,IF(D5=$S$10,$R$10,IF(D5=$S$11,$R$11,IF(D5=$S$12,$R$12,IF(D5=$S$13,$R$13,IF(D5=$S$14,$R$14,IF(D5=$S$15,$R$15,IF(D5=$S$16,$R$16,IF(D5=$S$17,$R$17,IF(D5=$S$18,$R$18,IF(D5=$S$19,$R$19,IF(D5=$S$20,$R$20,IF(D5=$S$21,$R$21,IF(D5=$S$22,$R$22,IF(D5=$S$23,$R$23,IF(D5=$S$24,$R$24,IF(D5=$S$25,$R$25,""))))))))))))))))))))) -> 1.3 | AG5: =R5 -> 1.1 | AH5: =SUMIF($AE$5:$AE$42,R5,$H$5:$H$57) -> 0 | AJ5: 0 | AM5: Photographer | AN5: 0.15
G6: =F6*IF(AE6=$R$5,$U$5,IF(AE6=$R$6,$U$6,IF(AE6=$R$7,$U$7,IF(AE6=$R$8,$U$8,IF(AE6=$R$9,$U$9,IF(AE6=$R$10,$U$10,IF(AE6=$R$11,$U$11,IF(AE6=$R$12,$U$12,IF(AE6=$R$13,$U$13,IF(AE6=$R$14,$U$14,IF(AE6=$R$15,$U$15,IF(AE6=$R$16,$U$16,IF(AE6=$R$17,$U$17,IF(AE6=$R$18,$U$18,IF(AE6=$R$19,$U$19,IF(AE6=$R$20,$U$20,IF(AE6=$R$21,$U$21,IF(AE6=$R$21,$U$21,IF(AE6=$R$22,$U$22,IF(AE6=$R$23,$U$23,IF(AE6=$R$24,$U$24,IF(AE6=$R$25,$U$25,)))))))))))))))))))))) -> 0 | H6: 0 | M6: 0 | O6: AM | P6: =SUMIFS($F$5:$F$57,$AE$5:$AE$57,">1",$AE$5:$AE$57,"<2") -> 2 | R6: 1.2 | S6: Account Manager | T6: =Calculations!E11 -> 44 | U6: 140 | V6: =U6/T6 -> 3.181818182 | AB6: Kyle | AC6: =R5 -> 1.1 | AE6: =IF(D6=$S$5,$R$5,IF(D6=$S$6,$R$6,IF(D6=$S$7,$R$7,IF(D6=$S$8,$R$8,IF(D6=$S$9,$R$9,IF(D6=$S$10,$R$10,IF(D6=$S$11,$R$11,IF(D6=$S$12,$R$12,IF(D6=$S$13,$R$13,IF(D6=$S$14,$R$14,IF(D6=$S$15,$R$15,IF(D6=$S$16,$R$16,IF(D6=$S$17,$R$17,IF(D6=$S$18,$R$18,IF(D6=$S$19,$R$19,IF(D6=$S$20,$R$20,IF(D6=$S$21,$R$21,IF(D6=$S$22,$R$22,IF(D6=$S$23,$R$23,IF(D6=$S$24,$R$24,IF(D6=$S$25,$R$25,""))))))))))))))))))))) ->  | AG6: 1.2 | AH6: 0 | AJ6: 0.1 | AM6: Videographer | AN6: 0.15
G7: 0 | H7: 0 | M7: 0 | O7: PM | P7: =SUMIFS($F$5:$F$57,$AE$5:$AE$57,">2",$AE$5:$AE$57,"<3") -> 0 | R7: 1.3 | S7: Sr. Account Manager | T7: =Calculations!E9 -> 72 | U7: 150 | V7: 2.083333333 | AB7: Leslie | AC7: =R7 -> 1.3 | AG7: 1.3 | AH7: 144 | AJ7: 0.15 | AM7: Animation | AN7: 0.15
G8: 0 | H8: 0 | M8: 0 | O8: Creative | P8: =SUMIFS($F$5:$F$57,$AE$5:$AE$57,">5",$AE$5:$AE$57,"<6") -> 0 | R8: 1.4 | S8: Account Supervisor | T8: =Calculations!E9 -> 72 | U8: 175 | V8: 2.430555556 | AB8: Chloe | AC8: =R7 -> 1.3 | AG8: 1.4 | AH8: 0 | AJ8: 0.17 | AM8: Sound/Video Editor | AN8: 0.15
G9: 0 | H9: 0 | M9: 0 | O9: Paid Digital | P9: =SUMIFS($F$5:$F$57,$AE$5:$AE$57,">4",$AE$5:$AE$57,"<5") -> 0 | R9: 1.5 | S9: Dir. Client Services | T9: =Calculations!E10 -> 91 | U9: 200 | V9: 2.197802198 | AB9: N/A | AC9: =R8 -> 1.4 | AG9: 1.5 | AH9: 0 | AJ9: 0.2 | AM9: Voice-over | AN9: 0.15
G10: 0 | H10: 0 | M10: 0 | O10: Digital | P10: =SUMIFS($F$5:$F$57,$AE$5:$AE$57,">3",$AE$5:$AE$57,"<4") -> 0 | R10: 3 | S10: SEO Strategist | T10: =Calculations!E15 -> 62 | U10: 110 | V10: 1.774193548 | AB10: Megan | AC10: =R8 -> 1.4 | AG10: 3 | AH10: 0 | AJ10: 0.25 | AM10: Stock Photo/Video | AN10: 0
G11: =F11*IF(AE11=$R$5,$U$5,IF(AE11=$R$6,$U$6,IF(AE11=$R$7,$U$7,IF(AE11=$R$8,$U$8,IF(AE11=$R$9,$U$9,IF(AE11=$R$10,$U$10,IF(AE11=$R$11,$U$11,IF(AE11=$R$12,$U$12,IF(AE11=$R$13,$U$13,IF(AE11=$R$14,$U$14,IF(AE11=$R$15,$U$15,IF(AE11=$R$16,$U$16,IF(AE11=$R$17,$U$17,IF(AE11=$R$18,$U$18,IF(AE11=$R$19,$U$19,IF(AE11=$R$20,$U$20,IF(AE11=$R$21,$U$21,IF(AE11=$R$21,$U$21,IF(AE11=$R$22,$U$22,IF(AE11=$R$23,$U$23,IF(AE11=$R$24,$U$24,IF(AE11=$R$25,$U$25,)))))))))))))))))))))) -> 0 | H11: 0 | M11: 0 | O11: ICs | P11: =SUMIFS($F$5:$F$57,$AE$5:$AE$57,">6",$AE$5:$AE$57,"<7") -> 0 | R11: 3.1 | S11: Developer 1 | T11: =Calculations!E15 -> 62 | U11: 175 | V11: 2.822580645 | AB11: Melissa | AC11: =R9 -> 1.5 | AG11: 3.1 | AH11: 0 | AJ11: 0.5 | AM11: Vanity phone #'s or URLs | AN11: 0.15
G12: 0 | H12: 0 | J12: Total | K12: =SUM(K5:K11) -> 0 | L12: =SUM(L5:L11) -> 0 | M12: =SUM(M5:M11) -> 0 | O12: MD/CEO | P12: =SUMIFS($F$5:$F$57,$AE$5:$AE$57,">7",$AE$5:$AE$57,"<8") -> 0 | R12: 3.2 | S12: Digital Accnt Mgr | T12: =Calculations!E19 -> 47 | U12: 200 | V12: 4.255319149 | AB12: N/A | AC12: 2.1 | AE12: =IF(D12=$S$5,$R$5,IF(D12=$S$6,$R$6,IF(D12=$S$7,$R$7,IF(D12=$S$8,$R$8,IF(D12=$S$9,$R$9,IF(D12=$S$10,$R$10,IF(D12=$S$11,$R$11,IF(D12=$S$12,$R$12,IF(D12=$S$13,$R$13,IF(D12=$S$14,$R$14,IF(D12=$S$15,$R$15,IF(D12=$S$16,$R$16,IF(D12=$S$17,$R$17,IF(D12=$S$18,$R$18,IF(D12=$S$19,$R$19,IF(D12=$S$20,$R$20,IF(D12=$S$21,$R$21,IF(D12=$S$22,$R$22,IF(D12=$S$23,$R$23,IF(D12=$S$24,$R$24,IF(D12=$S$25,$R$25,""))))))))))))))))))))) ->  | AG12: 3.2 | AH12: 0 | AJ12: 1 | AM12: Station Produced Spots | AN12: 0.15
G13: 0 | H13: 0 | O13: Total | P13: =SUM(P6:P12) -> 2 | R13: 3.3 | S13: Dir, Digital Accounts | T13: =Calculations!E7 -> 98 | U13: 200 | V13: 2.040816327 | AB13: Celeste | AC13: 2.1 | AG13: 3.3 | AH13: 0 | AL13: T&E | AM13: Travel | AN13: 0
G14: 0 | H14: 0 | K14: Name/Vendor | L14: Hourly Cost | M14: Hourly To Client | R14: 4.2 | S14: Paid Digital | T14: =Calculations!E6 -> 73 | U14: 185 | V14: 2.534246575 | AB14: Eddie | AC14: =R11 -> 3.1 | AG14: 4.2 | AH14: 0 | AM14: Meals | AN14: 0
G15: 0 | H15: 0 | J15: Other IC 1 | R15: 5.1 | S15: Exec. Creative Director | T15: =Calculations!E13 -> 98 | U15: 200 | V15: 2.040816327 | AB15: Jon | AC15: =R12 -> 3.2 | AG15: 5.1 | AH15: 0 | AM15: Hotels | AN15: 0
G16: 0 | H16: 0 | J16: Other IC 2 | R16: 6.1 | S16: IC Anne | T16: 85 | U16: 175 | V16: 2.058823529 | AB16: Garrick | AC16: =R14 -> 4.2 | AG16: 6.1 | AH16: 0 | AL16: Market Research | AM16: Research - Moderator | AN16: 0.15
G17: 0 | H17: 0 | J17: Other IC 3 | R17: 6.2 | S17: IC Cat | T17: 50 | U17: 125 | V17: 2.5 | AB17: N/A | AC17: =R13 -> 3.3 | AG17: 6.2 | AH17: 0 | AM17: Research - Honorarium | AN17: 0
G18: 0 | H18: 0 | J18: Other IC 4 | R18: 6.3 | S18: IC Julia | T18: 72 | U18: 150 | V18: 2.083333333 | AB18: Raheim | AC18: =R14 -> 4.2 | AG18: 6.3 | AH18: 0 | AM18: Research - Facilities | AN18: 0
G19: 0 | H19: 0 | J19: Other IC 5 | R19: 6.4 | S19: IC LeeAnn | T19: 55 | U19: 125 | V19: 2.272727273 | AB19: Dana | AC19: 5.1 | AG19: 6.4 | AH19: 0 | AM19: Research - Recruiting | AN19: 0.15
G20: 0 | H20: 0 | R20: 6.5 | S20: IC Other 1 | T20: =IF(L15="",0,L15) -> 0 | U20: 0 | AB20: Anne | AC20: 6.1 | AG20: 6.5 | AH20: 0 | AM20: Platforms (e.g. MailChimp) | AN20: 0.15
G21: 0 | H21: 0 | R21: 6.6 | S21: IC Other 2 | T21: 0 | U21: 0 | AB21: Naghmeh | AC21: 4.3 | AG21: 6.6 | AH21: 0 | AL21: Other | AM21: Shipping | AN21: 0
G22: 0 | H22: 0 | R22: 6.7 | S22: IC Other 3 | T22: 0 | U22: 0 | V22: =U22/T22 ->  | AB22: Charlie | AC22: 6.3 | AG22: =R22 -> 6.7 | AH22: 0 | AM22: Postage | AN22: 0
G23: 0 | H23: 0 | R23: 6.8 | S23: IC Other 4 | T23: =IF(L18="",0,L18) ->  | U23: 0 | AB23: Darlene | AC23: 6.4 | AG23: 6.8 | AH23: 0 | AM23: Software | AN23: 0
G24: 0 | H24: 0 | J24: Prelim Pricing | M24: FINAL Pricing | R24: 6.9 | S24: IC Other 5 | T24: =IF(L19="",0,L19) -> 0 | U24: =IF(M19="",0,M19) -> 0 | AB24: Robert | AC24: =R25 -> 7.1 | AG24: 6.9 | AH24: 0 | AM24: TBD - 0% | AN24: 0
G25: 0 | H25: 0 | J25: Prelim Pricing | K25: =G58+M12 -> 300 | M25: Final Sale Price | N25: 2500 | R25: 7.1 | S25: MD/CEO | T25: =Calculations!E22 -> 149 | U25: 275 | V25: =U25/T25 -> 1.845637584 | AB25: Stewart | AC25: =R25 -> 7.1 | AE25: =IF(D25=$S$5,$R$5,IF(D25=$S$6,$R$6,IF(D25=$S$7,$R$7,IF(D25=$S$8,$R$8,IF(D25=$S$9,$R$9,IF(D25=$S$10,$R$10,IF(D25=$S$11,$R$11,IF(D25=$S$12,$R$12,IF(D25=$S$13,$R$13,IF(D25=$S$14,$R$14,IF(D25=$S$15,$R$15,IF(D25=$S$16,$R$16,IF(D25=$S$17,$R$17,IF(D25=$S$18,$R$18,IF(D25=$S$19,$R$19,IF(D25=$S$20,$R$20,IF(D25=$S$21,$R$21,IF(D25=$S$22,$R$22,IF(D25=$S$23,$R$23,IF(D25=$S$24,$R$24,IF(D25=$S$25,$R$25,""))))))))))))))))))))) ->  | AG25: =R25 -> 7.1 | AH25: 0 | AM25: TBD - 15% | AN25: 0.15
G26: =F26*IF(AE26=$R$5,$U$5,IF(AE26=$R$6,$U$6,IF(AE26=$R$7,$U$7,IF(AE26=$R$8,$U$8,IF(AE26=$R$9,$U$9,IF(AE26=$R$10,$U$10,IF(AE26=$R$11,$U$11,IF(AE26=$R$12,$U$12,IF(AE26=$R$13,$U$13,IF(AE26=$R$14,$U$14,IF(AE26=$R$15,$U$15,IF(AE26=$R$16,$U$16,IF(AE26=$R$17,$U$17,IF(AE26=$R$18,$U$18,IF(AE26=$R$19,$U$19,IF(AE26=$R$20,$U$20,IF(AE26=$R$21,$U$21,IF(AE26=$R$21,$U$21,IF(AE26=$R$22,$U$22,IF(AE26=$R$23,$U$23,IF(AE26=$R$24,$U$24,IF(AE26=$R$25,$U$25,)))))))))))))))))))))) -> 0 | H26: =F26*IF(AE26=$R$5,$T$5,IF(AE26=$R$6,$T$6,IF(AE26=$R$7,$T$7,IF(AE26=$R$8,$T$8,IF(AE26=$R$9,$T$9,IF(AE26=$R$10,$T$10,IF(AE26=$R$11,$T$11,IF(AE26=$R$12,$T$12,IF(AE26=$R$13,$T$13,IF(AE26=$R$14,$T$14,IF(AE26=$R$15,$T$15,IF(AE26=$R$16,$T$16,IF(AE26=$R$17,$T$17,IF(AE26=$R$18,$T$18,IF(AE26=$R$19,$T$19,IF(AE26=$R$20,$T$20,IF(AE26=$R$21,$T$21,IF(AE26=$R$25,$T$25,)))))))))))))))))) -> 0 | J26: Costs | M26: Costs | N26: =K26 -> 0
G27: 0 | H27: 0 | J27: Internal Labor | K27: =SUM(AH5:AH5:AH15)+AH25 -> 144 | M27: Internal Labor | N27: 144
G28: 0 | H28: 0 | J28: External Labor | K28: =SUM(AH16:AH21) -> 0 | M28: External Labor | N28: 0
G29: 0 | H29: 0 | J29: Outside Costs | K29: =M12 -> 0 | M29: Outside Costs | N29: 0
G30: 0 | H30: 0 | J30: Total Costs | K30: =SUM(K27:K29) -> 144 | M30: Total Costs | N30: =SUM(N27:N29) -> 144
G31: 0 | H31: 0 | J31: Profit | K31: =K25-K30 -> 156 | M31: Profit | N31: =N25-N30 -> 2356
G32: 0 | H32: 0 | J32: Profit Margin | K32: =K31/K25 -> 0.52 | M32: Profit Margin | N32: =N31/N25 -> 0.9424
G33: 0 | H33: 0 | J33: Profit Ratio | K33: =K25/K30 -> 2.083333333 | M33: Profit Ratio | N33: =N25/N30 -> 17.36111111
G34: 0 | H34: 0
G35: 0 | H35: 0 | J35: "3:1" Price Scenario * | N35: Approval | O35: Date
G36: 0 | H36: 0 | J36: Sale Price | K36: =(K38*3)+(K39*3)+K40 -> 432 | M36: Jeff
G37: 0 | H37: 0 | J37: Costs | M37: Robert
G38: 0 | H38: 0 | J38: Internal Labor | K38: =K27 -> 144 | M38: Stewart
G39: 0 | H39: 0 | J39: External Labor | K39: =K28 -> 0
G40: 0 | H40: 0 | J40: Outside Costs | K40: =K29 -> 0
G41: 0 | J41: Total Costs | K41: =K30 -> 144
G42: 0 | J42: Profit | K42: =K36-K41 -> 288
G43: 0 | J43: Profit Margin | K43: =K42/K36 -> 0.6666666667 | AE43: =IF(D43=$S$5,$R$5,IF(D43=$S$6,$R$6,IF(D43=$S$7,$R$7,IF(D43=$S$8,$R$8,IF(D43=$S$9,$R$9,IF(D43=$S$10,$R$10,IF(D43=$S$11,$R$11,IF(D43=$S$12,$R$12,IF(D43=$S$13,$R$13,IF(D43=$S$14,$R$14,IF(D43=$S$15,$R$15,IF(D43=$S$16,$R$16,IF(D43=$S$17,$R$17,IF(D43=$S$18,$R$18,IF(D43=$S$19,$R$19,IF(D43=$S$20,$R$20,IF(D43=$S$21,$R$21,IF(D43=$S$22,$R$22,IF(D43=$S$23,$R$23,IF(D43=$S$24,$R$24,IF(D43=$S$25,$R$25,""))))))))))))))))))))) -> 
G44: =F44*IF(AE44=$R$5,$U$5,IF(AE44=$R$6,$U$6,IF(AE44=$R$7,$U$7,IF(AE44=$R$8,$U$8,IF(AE44=$R$9,$U$9,IF(AE44=$R$10,$U$10,IF(AE44=$R$11,$U$11,IF(AE44=$R$12,$U$12,IF(AE44=$R$13,$U$13,IF(AE44=$R$14,$U$14,IF(AE44=$R$15,$U$15,IF(AE44=$R$16,$U$16,IF(AE44=$R$17,$U$17,IF(AE44=$R$18,$U$18,IF(AE44=$R$19,$U$19,IF(AE44=$R$20,$U$20,IF(AE44=$R$21,$U$21,IF(AE44=$R$21,$U$21,IF(AE44=$R$22,$U$22,IF(AE44=$R$23,$U$23,IF(AE44=$R$24,$U$24,IF(AE44=$R$25,$U$25,)))))))))))))))))))))) -> 0 | J44: Profit Ratio | K44: =K36/K41 -> 3 | AE44: =IF(D44=$S$5,$R$5,IF(D44=$S$6,$R$6,IF(D44=$S$7,$R$7,IF(D44=$S$8,$R$8,IF(D44=$S$9,$R$9,IF(D44=$S$10,$R$10,IF(D44=$S$11,$R$11,IF(D44=$S$12,$R$12,IF(D44=$S$13,$R$13,IF(D44=$S$14,$R$14,IF(D44=$S$15,$R$15,IF(D44=$S$16,$R$16,IF(D44=$S$17,$R$17,IF(D44=$S$18,$R$18,IF(D44=$S$19,$R$19,IF(D44=$S$20,$R$20,IF(D44=$S$21,$R$21,IF(D44=$S$22,$R$22,IF(D44=$S$23,$R$23,IF(D44=$S$24,$R$24,IF(D44=$S$25,$R$25,""))))))))))))))))))))) -> 
G45: 0 | J45: *Excludes 3:1 markup on Outside Costs | AE45: =IF(D45=$S$5,$R$5,IF(D45=$S$6,$R$6,IF(D45=$S$7,$R$7,IF(D45=$S$8,$R$8,IF(D45=$S$9,$R$9,IF(D45=$S$10,$R$10,IF(D45=$S$11,$R$11,IF(D45=$S$12,$R$12,IF(D45=$S$13,$R$13,IF(D45=$S$14,$R$14,IF(D45=$S$15,$R$15,IF(D45=$S$16,$R$16,IF(D45=$S$17,$R$17,IF(D45=$S$18,$R$18,IF(D45=$S$19,$R$19,IF(D45=$S$20,$R$20,IF(D45=$S$21,$R$21,IF(D45=$S$22,$R$22,IF(D45=$S$23,$R$23,IF(D45=$S$24,$R$24,IF(D45=$S$25,$R$25,""))))))))))))))))))))) -> 
G46: 0
G47: 0
G48: 0
G49: 0
G50: 0
G51: 0
G52: 0
G53: 0
G54: 0
G55: 0
G56: 0 | H56: =F56*IF(AE41=$R$5,$T$5,IF(AE41=$R$6,$T$6,IF(AE41=$R$7,$T$7,IF(AE41=$R$8,$T$8,IF(AE41=$R$9,$T$9,IF(AE41=$R$10,$T$10,IF(AE41=$R$11,$T$11,IF(AE41=$R$12,$T$12,IF(AE41=$R$13,$T$13,IF(AE41=$R$14,$T$14,IF(AE41=$R$15,$T$15,IF(AE41=$R$16,$T$16,IF(AE41=$R$17,$T$17,IF(AE41=$R$18,$T$18,IF(AE41=$R$19,$T$19,IF(AE41=$R$20,$T$20,IF(AE41=$R$21,$T$21,IF(AE41=$R$25,$T$25,)))))))))))))))))) -> 0
G57: 0 | H57: =F57*IF(AE42=$R$5,$T$5,IF(AE42=$R$6,$T$6,IF(AE42=$R$7,$T$7,IF(AE42=$R$8,$T$8,IF(AE42=$R$9,$T$9,IF(AE42=$R$10,$T$10,IF(AE42=$R$11,$T$11,IF(AE42=$R$12,$T$12,IF(AE42=$R$13,$T$13,IF(AE42=$R$14,$T$14,IF(AE42=$R$15,$T$15,IF(AE42=$R$16,$T$16,IF(AE42=$R$17,$T$17,IF(AE42=$R$18,$T$18,IF(AE42=$R$19,$T$19,IF(AE42=$R$20,$T$20,IF(AE42=$R$21,$T$21,IF(AE42=$R$25,$T$25,)))))))))))))))))) -> 0
E58: Total Hours | F58: =SUM(F5:F57) -> 2 | G58: =SUM(G5:G57) -> 300 | H58: =SUM(H5:H57) -> 144

Sheet Calculations
A3: Dept/Employee | B3: Total
B5: Salary | C5: Sal + Benefits | D5: Hourly Cost | E5: Hourly Cost (Rounded)
A6: Director Digital Marketing - Raheim Bundle | B6: 112500 | C6: =B6*1.3 -> 146250 | D6: =C6/2000 -> 73.125 | E6: =ROUND(D6,0) -> 73
A7: Digital Account Director - Jon Silver | B7: 150000 | C7: =B7*1.3 -> 195000 | D7: 97.5 | E7: 98
A8: Digital Account Supervisor - Garrick Gaffney | B8: 92500 | C8: 120250 | D8: 60.125 | E8: 60
A9: Account Supervisor - Megan | B9: 110000 | C9: 143000 | D9: 71.5 | E9: 72
A10: Acct Director - Melissa Martinez | B10: 140000 | C10: 182000 | D10: 91 | E10: 91
A11: Account Manager - Leslie Hines | B11: 68000 | C11: 88400 | D11: 44.2 | E11: 44
A12: Account Coordinator - Chloé Ribotsky | B12: 52083 | C12: 67707.9 | D12: 33.85395 | E12: 34
A13: Creative Director - Dana | B13: 150000 | C13: 195000 | D13: 97.5 | E13: 98
A14: Web Programmer - Eddie Olivas | B14: 87125 | C14: 113262.5 | D14: 56.63125 | E14: 57
A15: Naghmeh Jafarzadeh - Digital Strategist | B15: 95000 | C15: 123500 | D15: 61.75 | E15: 62
A16: Project Manager - Tamila Kahng | B16: 85000 | C16: 110500 | D16: 55.25 | E16: 55
A17: Associate Project Mgr/Media Coordinator - Celeste Ethington | B17: 50750 | C17: 65975 | D17: 32.9875 | E17: 33
A18: Business Dev - Kathy Gaughran | B18: 0 | C18: 0 | D18: 0 | E18: 0
A19: Andrew Ta - Digital Account Manager | B19: 73000 | C19: 94900 | D19: 47.45 | E19: 47
A20: Marketing & Office Administrator - Kyle Hojem | B20: 37187 | C20: 48343.1 | D20: 24.17155 | E20: 24
A21: CEO - Stewart Gandolf | B21: 300000 | C21: 390000 | D21: 195 | E21: 195
A22: Managing Director - TBD | B22: 229166 | C22: 297915.8 | D22: 148.9579 | E22: 149
A23: CFO - Jeff Mancino | B23: 205000 | C23: 266500 | D23: 133.25 | E23: 133
A24: Sr. Accountant - Elisa Negrete | B24: 72000 | C24: 93600 | D24: 46.8 | E24: 47
